bitfinex/quotes_ETHUSD_20230117
["timestamp","ask_amount","ask_price","bid_price","bid_amount"]
[1673923313803,29.64081469,1558.8,1558.7,0.00141235]
[1673923314015,29.97935814,1558.8,1558.7,0.00141235]
[1673923314226,0.00058765,1558.6,1558.4,7.8815]
[1673923314483,0.96040718,1558.6,1558.4,7.8815]
[1673923314702,0.96040718,1558.6,1558.3,0.066]
[1673923314890,0.96040718,1558.6,1558.3,3.11662407]
[1673923316118,0.96040718,1558.6,1558.4,1.227]
[1673923319542,0.00058765,1558.6,1558.4,1.227]
[1673923320024,0.96040718,1558.6,1558.4,1.227]
[1673923320234,0.96340718,1558.6,1558.4,1.227]
[1673923320589,0.96040718,1558.6,1558.4,1.227]
[1673923322584,0.00058765,1558.6,1558.4,1.227]
[1673923322967,0.96040718,1558.6,1558.4,1.227]
[1673923325193,0.00058765,1558.6,1558.4,1.227]
[1673923325385,0.00058765,1558.6,1558.4,2.227]
[1673923325587,0.00058765,1558.6,1558.4,1.227]
[1673923325786,0.96040718,1558.6,1558.4,1.227]
[1673923326004,0.00058765,1558.6,1558.4,2.227]
[1673923326529,0.96040718,1558.6,1558.4,1.227]
[1673923327892,8.26796783,1558.6,1558.3,8.014]
[1673923328102,8.26796783,1558.6,1558.3,7.948]
[1673923328103,8.36696783,1558.6,1558.3,7.948]
[1673923328312,9.80669712,1558.6,1558.3,7.948]
[1673923329362,16.22276712,1558.6,1558.3,7.948]
[1673923329629,2.58209624,1558.5,1558.3,7.948]
[1673923329943,9.00156624,1558.5,1558.3,7.948]
[1673923330150,9.09756624,1558.5,1558.2,4.304]
[1673923330316,9.09756624,1558.5,1558.3,3.0]
[1673923330836,9.09756624,1558.5,1558.2,4.304]
[1673923331049,0.90975662,1558.4,1558.2,4.238]
[1673923331266,0.90975662,1558.4,1558.2,3.0]
[1673923332241,9.09756624,1558.5,1558.2,3.0]
[1673923338634,9.09756624,1558.5,1558.2,2.99653438]
[1673923340214,8.13774671,1558.5,1558.2,2.99653438]
[1673923340466,8.13774671,1558.5,1558.2,15.83165438]
[1673923340467,0.099,1558.5,1558.2,15.83165438]
[1673923340653,10.63570647,1558.6,1558.2,15.83165438]
[1673923340876,10.63570647,1558.6,1558.2,9.41399438]
[1673923341740,10.63570647,1558.6,1558.2,10.71399438]
[1673923341951,9.19597718,1558.6,1558.2,10.71399438]
[1673923342470,10.63570647,1558.6,1558.2,10.71399438]
[1673923342963,9.19597718,1558.6,1558.2,10.71399438]
[1673923344256,10.63570647,1558.6,1558.2,10.71399438]
[1673923346459,10.63570647,1558.6,1558.2,14.20225482]
[1673923346460,0.95981953,1558.5,1558.2,14.20225482]
[1673923346674,0.95981953,1558.5,1558.2,16.23979695]
[1673923346833,0.95981953,1558.5,1558.3,1.0]
[1673923347499,0.95981953,1558.5,1558.2,22.72345695]
[1673923347690,0.95981953,1558.5,1558.2,22.65745695]
[1673923348521,0.95981953,1558.5,1558.3,1.0]
[1673923348772,0.95981953,1558.5,1558.2,23.68195857]
[1673923348933,0.95981953,1558.5,1558.3,1.59222807]
[1673923350550,2.39954882,1558.5,1558.3,1.59222807]
[1673923351254,2.39954882,1558.5,1558.3,2.89222807]
[1673923351622,2.39954882,1558.5,1558.3,1.3]
[1673923352148,2.39954882,1558.5,1558.3,18.07481775]
[1673923352300,1.05940718,1558.6,1558.4,4.59208197]
[1673923352674,0.00058765,1558.6,1558.5,2.83103091]
[1673923352839,0.00058765,1558.6,1558.5,10.24744352]
[1673923353048,0.00358765,1558.6,1558.5,9.24744352]
[1673923353249,0.00358765,1558.6,1558.5,12.49668065]
[1673923353250,0.00058765,1558.6,1558.5,12.49668065]
[1673923353906,0.00058765,1558.6,1558.5,28.44614472]
[1673923354121,0.00058765,1558.6,1558.5,33.48821196]
[1673923355207,0.00058765,1558.6,1558.5,31.44614472]
[1673923355410,0.00058765,1558.6,1558.5,33.48709992]
[1673923356367,0.00058765,1558.6,1558.5,31.44614472]
[1673923359629,0.95981953,1558.8,1558.6,0.00257095]
[1673923359833,0.95981953,1558.8,1558.7,6.4156]
[1673923360005,0.95981953,1558.9,1558.7,23.59042407]
[1673923360195,0.95981953,1558.9,1558.8,3.11662407]
[1673923360408,0.95981953,1558.9,1558.8,15.94700407]
[1673923360622,0.95981953,1559.0,1558.8,15.94700407]
[1673923361301,0.95981953,1559.0,1558.8,17.24700407]
[1673923361517,0.95981953,1559.0,1558.8,19.74256448]
[1673923362146,2.49854882,1559.1,1558.8,27.39475448]
[1673923362316,0.95981953,1559.1,1558.9,4.239]
[1673923362511,0.95981953,1559.1,1558.9,20.23144545]
[1673923362718,0.95981953,1559.1,1558.9,18.99244545]
[1673923362971,2.39954882,1559.1,1558.9,9.41439]
[1673923363159,2.39954882,1559.1,1558.9,10.71439]
[1673923364460,0.95981953,1559.1,1558.9,10.71439]
[1673923365554,3.39954882,1559.1,1558.9,4.3]
[1673923366085,2.39954882,1559.1,1558.9,4.3]
[1673923366256,4.3264563,1559.1,1558.9,4.3]
[1673923367046,0.95981953,1559.0,1558.9,4.3]
[1673923367258,5.4254563,1559.1,1558.9,4.3]
[1673923367583,2.98572701,1559.1,1558.9,4.3]
[1673923367825,0.95981953,1559.1,1558.9,10.71476]
[1673923368781,0.96281953,1559.1,1558.9,10.71476]
[1673923368933,0.95981953,1559.1,1558.9,10.71476]
[1673923370201,0.95981953,1559.1,1558.9,4.3]
[1673923371091,0.95981953,1559.1,1558.9,10.71472]
[1673923373884,3.6369683,1559.1,1558.9,4.3]
[1673923375671,2.19723901,1559.1,1558.9,4.3]
[1673923375882,0.95981953,1559.1,1558.9,4.3]
[1673923376459,2.39954882,1559.1,1558.9,4.3]
[1673923377200,0.95981953,1559.1,1558.9,4.3]
[1673923379308,2.39954882,1559.1,1558.9,4.3]
[1673923380353,0.95981953,1559.0,1558.9,4.3]
[1673923380507,0.95981953,1559.0,1558.9,3.0]
[1673923380717,0.95981953,1559.0,1558.8,0.066]
[1673923380718,0.95981953,1559.0,1558.8,3.066]
[1673923380961,0.95981953,1559.0,1558.8,3.0]
[1673923381386,1.95981953,1559.0,1558.8,3.0]
[1673923381575,0.95981953,1559.0,1558.8,3.0]
[1673923382557,2.39954882,1559.0,1558.8,3.0]
[1673923384563,0.95981953,1558.9,1558.8,3.0]
[1673923385983,2.39954882,1559.0,1558.8,3.0]
[1673923386196,0.95981953,1558.9,1558.8,3.0]
[1673923386612,1.29977441,1558.9,1558.7,9.6729]
[1673923386821,1.29977441,1558.9,1558.6,6.48430095]
[1673923386822,3.7395037,1558.9,1558.6,6.48430095]
[1673923387052,0.95981953,1558.8,1558.6,0.00257095]
[1673923387275,1.3337699,1558.8,1558.6,0.00257095]
[1673923388296,1.3337699,1558.8,1558.6,3.00257095]
[1673923388721,1.3337699,1558.8,1558.6,0.00257095]
[1673923388954,0.95981953,1558.7,1558.6,0.00257095]
[1673923389162,2.39954882,1558.7,1558.6,0.00257095]
[1673923389387,1.00019153,1558.6,1558.4,8.458]
[1673923389603,0.96068572,1558.6,1558.3,12.89995]
[1673923389833,0.96068572,1558.6,1558.4,6.41681]
[1673923390198,0.00019153,1558.6,1558.4,6.41681]
[1673923390412,0.96068572,1558.6,1558.4,6.41681]
[1673923391040,2.39927529,1558.6,1558.3,19.01657407]
[1673923391265,2.39927529,1558.6,1558.4,3.0]
[1673923391266,1.39927529,1558.6,1558.4,3.0]
[1673923391525,0.96068572,1558.6,1558.4,9.4167]
[1673923391983,0.96368572,1558.6,1558.4,9.4167]
[1673923392194,0.96068572,1558.6,1558.4,9.4167]
[1673923394460,0.00019153,1558.6,1558.4,9.4167]
[1673923394934,0.96068572,1558.6,1558.4,9.4167]
[1673923395781,1.96068572,1558.6,1558.4,9.4167]
[1673923395992,0.96068572,1558.6,1558.4,9.4167]
[1673923396428,0.00019153,1558.6,1558.4,9.4167]
[1673923397084,0.96068572,1558.6,1558.4,9.4167]
[1673923397241,2.45953529,1558.6,1558.4,3.0]
[1673923397715,2.45953529,1558.6,1558.3,0.066]
[1673923397716,8.87573529,1558.6,1558.3,0.066]
[1673923397934,9.79559339,1558.6,1558.3,3.0]
[1673923398084,11.23532268,1558.6,1558.3,3.0]
[1673923398291,1.12353227,1558.5,1558.3,3.0]
[1673923399245,2.12353227,1558.5,1558.3,3.0]
[1673923399704,1.12353227,1558.5,1558.3,3.0]
[1673923403253,2.12353227,1558.5,1558.3,3.0]
[1673923403461,1.12353227,1558.5,1558.3,3.0]
[1673923406546,2.0795411,1558.6,1558.3,9.41721]
[1673923406808,2.0795411,1558.6,1558.3,15.83445]
[1673923406809,0.00019153,1558.6,1558.3,15.83445]
[1673923407207,0.96068572,1558.6,1558.3,17.13445]
[1673923407834,1.96068572,1558.6,1558.3,17.13445]
[1673923408387,0.96068572,1558.6,1558.3,17.13445]
[1673923410025,0.96068572,1558.6,1558.3,17.13057688]
[1673923411442,1.96068572,1558.6,1558.3,17.13057688]
[1673923411620,4.2831711,1558.6,1558.3,4.29612688]
[1673923411832,2.40022348,1558.5,1558.3,1.3]
[1673923412024,0.96049419,1558.5,1558.3,1.3]
[1673923412550,0.96349419,1558.5,1558.3,1.3]
[1673923412766,0.96049419,1558.5,1558.3,1.3]
[1673923412976,2.25304942,1558.4,1558.3,1.3]
[1673923413198,1.25304942,1558.4,1558.3,1.3]
[1673923414056,0.09604942,1558.4,1558.3,1.3]
[1673923419143,0.96049419,1558.5,1558.3,1.3]
[1673923420412,8.92005229,1558.6,1558.3,14.13445]
[1673923420561,8.58069419,1558.6,1558.3,14.13445]
[1673923422486,8.58069419,1558.6,1558.3,20.55169]
[1673923422732,1.05949419,1558.6,1558.3,20.55169]
[1673923422935,0.96049419,1558.6,1558.3,20.55169]
[1673923423292,0.96049419,1558.6,1558.4,2.055169]
[1673923423534,0.96049419,1558.6,1558.4,8.471779]
[1673923424157,0.96049419,1558.6,1558.4,9.771779]
[1673923425505,0.96049419,1558.6,1558.4,16.188609]
[1673923426876,0.96049419,1558.6,1558.5,0.85768281]
[1673923427718,0.96049419,1558.6,1558.5,2.15768281]
[1673923428355,2.40022348,1558.6,1558.5,2.15768281]
[1673923436273,1.43972929,1558.6,1558.5,2.15768281]
[1673923437079,3.36231716,1558.6,1558.5,2.15768281]
[1673923438488,1.43972929,1558.6,1558.5,2.15768281]
[1673923438705,2.40113661,1558.6,1558.5,2.15768281]
[1673923439160,1.43972929,1558.6,1558.5,2.15768281]
[1673923439805,2.4011307,1558.6,1558.5,8.57410281]
[1673923444542,0.96140141,1558.6,1558.5,8.57410281]
[1673923446758,2.4011307,1558.6,1558.5,8.57410281]
[1673923447125,2.94226115,1558.6,1558.5,2.15768281]
[1673923447686,3.94226115,1558.6,1558.5,2.15768281]
[1673923447947,5.86484902,1558.6,1558.5,2.15768281]
[1673923448161,5.96384902,1558.6,1558.5,2.15768281]
[1673923448373,4.96384902,1558.6,1558.5,2.15768281]
[1673923448695,4.86484902,1558.6,1558.5,2.15768281]
[1673923450782,2.94226115,1558.6,1558.5,2.15768281]
[1673923451098,1.43972929,1558.6,1558.5,2.15768281]
[1673923452574,3.36231716,1558.6,1558.5,2.15768281]
[1673923453942,8.75401778,1558.6,1558.5,2.15768281]
[1673923454108,8.85301778,1558.6,1558.5,2.15768281]
[1673923454519,7.41328849,1558.6,1558.5,2.15768281]
[1673923454784,8.8558636,1558.6,1558.5,2.15768281]
[1673923454957,9.48911728,1558.6,1558.5,2.15768281]
[1673923455355,10.48911728,1558.6,1558.5,2.15768281]
[1673923458034,9.48911728,1558.6,1558.5,2.15768281]
[1673923458232,10.48911728,1558.6,1558.5,2.15768281]
[1673923459157,8.41328849,1558.6,1558.5,2.15768281]
[1673923459376,7.41328849,1558.6,1558.5,2.15768281]
[1673923460244,8.41328849,1558.6,1558.5,2.15768281]
[1673923460716,7.41328849,1558.6,1558.5,2.15768281]
[1673923461177,8.85653221,1558.6,1558.5,2.15768281]
[1673923462291,7.41328849,1558.6,1558.5,2.15768281]
[1673923464257,9.48911728,1558.6,1558.5,2.15768281]
[1673923464432,11.89215858,1558.6,1558.5,2.15768281]
[1673923465085,9.48911728,1558.6,1558.5,2.15768281]
[1673923466266,10.48911728,1558.6,1558.5,2.15768281]
[1673923467146,9.48911728,1558.6,1558.5,2.15768281]
[1673923468245,10.48911728,1558.6,1558.5,2.15768281]
[1673923468405,9.48911728,1558.6,1558.5,2.15768281]
[1673923469096,7.41328849,1558.6,1558.5,2.15768281]
[1673923474106,9.81632979,1558.6,1558.5,2.15768281]
[1673923477594,7.41328849,1558.6,1558.5,2.15768281]
[1673923479735,10.81632979,1558.6,1558.5,2.15768281]
[1673923480494,9.81632979,1558.6,1558.5,2.15768281]
[1673923481521,10.81632979,1558.6,1558.5,2.15768281]
[1673923481699,9.81632979,1558.6,1558.5,2.15768281]
[1673923481910,10.81632979,1558.6,1558.5,2.15768281]
[1673923483400,10.06957071,1558.6,1558.5,2.15768281]
[1673923483987,9.59115356,1558.6,1558.5,2.15768281]
[1673923484240,7.41532477,1558.6,1558.5,2.15768281]
[1673923484476,10.81836607,1558.6,1558.5,2.15768281]
[1673923484822,9.81836607,1558.6,1558.5,2.15768281]
[1673923486998,10.81836607,1558.6,1558.5,2.15768281]
[1673923487176,8.89374192,1558.6,1558.5,2.15768281]
[1673923487351,7.89374192,1558.6,1558.5,2.15768281]
[1673923487559,10.81866066,1558.6,1558.5,2.15768281]
[1673923487769,7.89374192,1558.6,1558.5,2.15768281]
[1673923488016,8.89374192,1558.6,1558.5,2.15768281]
[1673923488236,7.89374192,1558.6,1558.5,2.15768281]
[1673923488625,8.89374192,1558.6,1558.5,0.85768281]
[1673923488832,7.89374192,1558.6,1558.5,0.85768281]
[1673923489535,10.77731192,1558.6,1558.5,0.85768281]
[1673923490404,25.80976071,1558.6,1558.5,0.85459362]
[1673923490619,26.14911881,1558.6,1558.5,0.85459362]
[1673923491066,26.14911881,1558.6,1558.5,0.61471118]
[1673923491399,32.56512881,1558.6,1558.5,0.61471118]
[1673923492385,31.56512881,1558.6,1558.5,0.61471118]
[1673923496010,28.68215872,1558.6,1558.5,0.61471118]
[1673923498503,31.79878279,1558.6,1558.5,0.61471118]
[1673923498746,31.79878279,1558.6,1558.1,1.43302627]
[1673923498747,0.31744692,1558.4,1558.1,1.43302627]
[1673923498907,1.44224761,1558.2,1558.1,1.36702627]
[1673923499321,2.44224761,1558.2,1558.1,0.06702627]
[1673923499531,4.36524442,1558.2,1558.1,0.06702627]
[1673923499757,3.44643046,1558.2,1558.1,0.06702627]
[1673923500400,10.86409046,1558.2,1558.1,0.06702627]
[1673923500610,10.96309046,1558.2,1558.1,0.06702627]
[1673923501156,12.88608727,1558.2,1558.1,0.06702627]
[1673923501376,9.96309046,1558.2,1558.1,0.06702627]
[1673923502441,10.96309046,1558.2,1558.1,0.06702627]
[1673923502655,12.88608727,1558.2,1558.1,0.06702627]
[1673923502838,11.88608727,1558.2,1558.1,0.06702627]
[1673923503736,9.96309046,1558.2,1558.1,0.06702627]
[1673923505064,10.9235692,1558.2,1558.1,0.06702627]
[1673923505274,9.96309046,1558.2,1558.1,0.06702627]
[1673923505599,10.92329815,1558.2,1558.1,0.06702627]
[1673923505805,9.48105054,1558.2,1558.1,0.06702627]
[1673923506628,10.92329815,1558.2,1558.1,0.06702627]
[1673923506834,9.48105054,1558.2,1558.1,0.06702627]
[1673923507083,10.92329815,1558.2,1558.1,0.06702627]
[1673923507482,9.48105054,1558.2,1558.1,0.06702627]
[1673923508376,10.92329815,1558.2,1558.1,0.06702627]
[1673923509161,9.48105054,1558.2,1558.1,0.06702627]
[1673923510543,7.47686769,1558.2,1558.1,0.06702627]
[1673923511297,0.099,1558.2,1558.1,1.12302627]
[1673923511517,20.84280222,1558.4,1558.1,7.54109627]
[1673923511823,0.41644692,1558.4,1558.2,5.20707287]
[1673923512039,0.31744692,1558.4,1558.3,16.35518729]
[1673923514447,0.31744692,1558.4,1558.3,17.59418729]
[1673923514696,0.31744692,1558.4,1558.3,24.01142729]
[1673923516076,0.31744692,1558.4,1558.3,27.12805136]
[1673923521703,0.31744692,1558.4,1558.3,33.93472631]
[1673923521850,0.31744692,1558.4,1558.3,36.94348466]
[1673923522065,0.31744692,1558.4,1558.3,36.63132222]
[1673923522444,0.31744692,1558.4,1558.3,37.58982384]
[1673923522744,0.26744692,1558.4,1558.3,36.63132222]
[1673923524011,0.96020769,1558.8,1558.3,36.63132222]
[1673923524168,0.96020769,1558.8,1558.6,1.238]
[1673923524376,0.96020769,1558.8,1558.7,12.8312]
[1673923524840,2.4024553,1558.9,1558.7,12.8312]
[1673923525056,0.96020769,1558.8,1558.7,12.8312]
[1673923525269,0.96020769,1558.8,1558.7,15.94782407]
[1673923525589,1.44224761,1558.9,1558.7,15.94782407]
[1673923525590,0.96020769,1558.9,1558.7,26.26517748]
[1673923526116,1.1051983,1559.0,1558.7,19.84957748]
[1673923526744,1.0551983,1559.0,1558.7,19.84957748]
[1673923529424,1.0581983,1559.0,1558.7,19.84957748]
[1673923529755,1.0551983,1559.0,1558.7,19.84957748]
[1673923529984,1.0551983,1559.0,1558.8,1.98495775]
[1673923530377,1.0551983,1559.0,1558.8,8.39992775]
[1673923530641,0.09499061,1559.0,1558.8,8.39992775]
[1673923530864,1.0551983,1559.0,1558.8,8.39992775]
[1673923531241,1.0551983,1559.0,1558.8,14.81511775]
[1673923531453,1.04262211,1559.0,1558.8,14.81511775]
[1673923532177,1.04262211,1559.0,1558.8,24.34693182]
[1673923533651,2.04262211,1559.0,1558.8,24.34693182]
[1673923533859,2.04262211,1559.0,1558.9,1.226804]
[1673923534282,1.04262211,1559.0,1558.9,1.226804]
[1673923536215,1.04262211,1559.0,1558.9,7.641574]
[1673923536598,0.08241442,1559.0,1558.9,7.641574]
[1673923536788,0.08241442,1559.0,1558.9,14.056344]
[1673923538082,0.08241442,1559.0,1558.9,7.641574]
[1673923540055,2.44110908,1559.0,1558.9,1.226804]
[1673923540267,4.36173979,1559.0,1558.9,0.89161701]
[1673923540839,5.36173979,1559.0,1558.9,0.89161701]
[1673923540988,4.742449,1559.0,1558.9,0.89161701]
[1673923541199,11.057809,1559.0,1558.9,0.89161701]
[1673923541464,11.156809,1559.0,1558.9,0.89161701]
[1673923541623,12.11420644,1559.0,1558.9,0.89161701]
[1673923542502,1.96859883,1559.0,1558.9,0.89161701]
[1673923542730,1.38829883,1559.0,1558.9,0.89161701]
[1673923543326,1.03981186,1559.0,1558.9,0.89161701]
[1673923544413,1.03773326,1559.0,1558.9,0.89161701]
[1673923545429,2.47998087,1559.0,1558.9,0.89161701]
[1673923547257,2.00333263,1559.0,1558.9,0.89161701]
[1673923547561,3.48408183,1559.0,1558.9,0.89161701]
[1673923547769,8.77278546,1559.0,1558.9,0.89161701]
[1673923547930,8.87178546,1559.0,1558.9,0.89161701]
[1673923550504,7.46803945,1559.0,1558.9,0.89161701]
[1673923551563,10.35253467,1559.0,1558.9,0.89161701]
[1673923552257,16.76689467,1559.0,1558.9,0.89161701]
[1673923553034,31.643101,1559.0,1558.9,0.43715368]
[1673923553223,31.873101,1559.0,1558.9,0.43715368]
[1673923553398,28.98860578,1559.0,1558.9,0.43715368]
[1673923553608,31.86948958,1559.0,1558.9,0.43715368]
[1673923553865,42.13668958,1559.0,1558.9,0.43715368]
[1673923554073,39.25580578,1559.0,1558.9,0.43715368]
[1673923554607,47.34349818,1559.0,1558.9,0.43715368]
[1673923555251,47.34349818,1559.0,1558.9,0.3266431]
[1673923555817,55.66249818,1559.0,1558.9,0.3266431]
[1673923557186,50.45592909,1559.0,1558.9,0.3266431]
[1673923557657,47.57138946,1559.0,1558.9,0.3266431]
[1673923558441,46.57138946,1559.0,1558.9,0.3266431]
[1673923558650,49.45265669,1559.0,1558.9,0.3266431]
[1673923559515,46.57138946,1559.0,1558.9,0.3266431]
[1673923559748,49.4528815,1559.0,1558.9,0.3266431]
[1673923560908,52.56950557,1559.0,1558.9,0.3266431]
[1673923561084,52.56950557,1559.0,1558.9,0.09799808]
[1673923561085,63.58228245,1559.0,1558.9,0.09799808]
[1673923561293,63.60112691,1559.0,1558.9,0.09799808]
[1673923561539,60.23903593,1559.0,1558.9,0.09799808]
[1673923561749,63.23903593,1559.0,1558.9,0.09799808]
[1673923562875,63.23903593,1559.0,1558.9,0.04938158]
[1673923563206,60.12241186,1559.0,1558.9,0.04938158]
[1673923563440,59.25163346,1559.0,1558.9,0.04938158]
[1673923563751,50.68287386,1559.0,1558.9,0.04938158]
[1673923563939,50.45287386,1559.0,1558.9,0.04938158]
[1673923564157,44.03851386,1559.0,1558.9,0.04938158]
[1673923565968,44.26851386,1559.0,1558.9,0.04938158]
[1673923568819,43.03851386,1559.0,1558.9,0.04938158]
[1673923570130,42.55721386,1559.0,1558.9,0.04938158]
[1673923570301,42.55721386,1559.0,1558.9,0.03739405]
[1673923570456,36.14285386,1559.0,1558.9,1.09339405]
[1673923570665,10.01485882,1559.0,1558.9,1.09339405]
[1673923570930,9.20758746,1559.0,1558.9,1.09339405]
[1673923571256,7.96858746,1559.0,1558.9,1.09339405]
[1673923572665,7.96858746,1559.0,1558.9,0.03739405]
[1673923573453,7.96858746,1559.0,1558.9,1.09339405]
[1673923573763,7.96858746,1559.0,1558.9,7.50816405]
[1673923573764,7.48848611,1559.0,1558.9,7.50816405]
[1673923574601,7.48848611,1559.0,1558.9,8.6638384]
[1673923577112,9.88988548,1559.0,1558.9,8.6638384]
[1673923577445,7.48848611,1559.0,1558.9,8.6638384]
[1673923578651,9.88988548,1559.0,1558.9,8.6638384]
[1673923578913,7.48848611,1559.0,1558.9,8.6638384]
[1673923580902,7.48848611,1559.0,1558.9,15.0786084]
[1673923581121,9.88988548,1559.0,1558.9,15.0786084]
[1673923581649,7.48848611,1559.0,1558.9,15.0786084]
[1673923585004,3.53785006,1559.0,1558.9,15.0786084]
[1673923585289,8.82933886,1559.0,1558.9,15.0786084]
[1673923585455,8.92836075,1559.0,1558.9,15.0786084]
[1673923585658,3.53785006,1559.0,1558.9,15.0786084]
[1673923585872,3.43885006,1559.0,1558.9,15.0786084]
[1673923587833,3.43885006,1559.0,1558.9,24.61000247]
[1673923587834,0.0769195,1559.0,1558.9,24.61000247]
[1673923588255,1.03708661,1559.0,1558.9,24.61000247]
[1673923588547,0.0769195,1559.0,1558.9,28.56086715]
[1673923588914,0.0769195,1559.0,1558.9,33.03986715]
[1673923589283,0.0769195,1559.0,1558.9,29.08900247]
[1673923593291,0.0769195,1559.0,1558.9,33.03986715]
[1673923593503,0.07314054,1559.0,1558.9,33.03986715]
[1673923595445,0.07314054,1559.0,1558.9,29.08900247]
[1673923605518,0.07314054,1559.0,1558.9,27.61000247]
[1673923607199,0.07314054,1559.0,1558.9,31.56086715]
[1673923607416,0.02314054,1559.0,1558.9,29.08900247]
[1673923607627,0.02314054,1559.0,1558.9,33.03986715]
[1673923610305,1.19985564,1559.4,1558.9,40.03293851]
[1673923610533,3.36193056,1559.5,1558.9,40.03293851]
[1673923610534,0.099,1559.5,1559.3,4.59562407]
[1673923610719,1.12469787,1559.6,1559.3,4.59562407]
[1673923610720,1.12469787,1559.6,1559.4,2.958]
[1673923610946,0.16453076,1559.6,1559.5,5.47]
[1673923611260,0.16453076,1559.6,1559.5,21.41124407]
[1673923611419,0.16453076,1559.6,1559.5,21.17624407]
[1673923611624,0.16453076,1559.6,1559.5,24.06534048]
[1673923611878,0.0013405,1559.7,1559.5,24.30134048]
[1673923612066,0.15350278,1559.8,1559.6,3.11662407]
[1673923612279,0.15350278,1559.8,1559.7,6.11662407]
[1673923612698,1.11282611,1559.8,1559.7,6.11662407]
[1673923612911,1.11282611,1559.8,1559.7,3.0]
[1673923613159,1.11282611,1559.8,1559.6,3.066]
[1673923613464,1.11282611,1559.8,1559.6,7.47696471]
[1673923614305,1.11282611,1559.8,1559.6,13.88884471]
[1673923614982,1.11282611,1559.8,1559.6,7.47696471]
[1673923615194,0.95932333,1559.7,1559.5,0.066]
[1673923615444,0.95932333,1559.7,1559.3,3.0]
[1673923615445,0.4812,1559.6,1559.3,3.0]
[1673923615652,0.4812,1559.6,1559.2,6.4794]
[1673923615895,0.4812,1559.6,1559.2,11.93303207]
[1673923616230,1.44052333,1559.6,1559.2,11.93303207]
[1673923617076,1.44052333,1559.6,1559.3,3.0]
[1673923617754,2.44052333,1559.6,1559.3,3.0]
[1673923617972,0.95932333,1559.5,1559.3,3.0]
[1673923618556,1.44052333,1559.6,1559.3,3.0]
[1673923618919,0.95932333,1559.5,1559.3,3.0]
[1673923619475,1.44052333,1559.6,1559.3,4.90094241]
[1673923619686,1.44052333,1559.6,1559.3,20.84378648]
[1673923620018,0.95932333,1559.6,1559.3,20.84378648]
[1673923620758,0.95932333,1559.6,1559.4,3.11662407]
[1673923621066,0.95932333,1559.7,1559.5,15.94124407]
[1673923621226,9.13252611,1559.8,1559.5,18.30022748]
[1673923622092,0.4811,1559.7,1559.5,18.30022748]
[1673923622318,11.04996434,1559.8,1559.5,18.30022748]
[1673923622533,11.04996434,1559.8,1559.5,15.94124407]
[1673923622729,11.04996434,1559.8,1559.6,15.93999407]
[1673923623322,3.12926434,1559.8,1559.6,15.93999407]
[1673923623581,3.03026434,1559.8,1559.6,15.93999407]
[1673923624531,1.59392611,1559.8,1559.6,15.93999407]
[1673923626373,1.59392611,1559.8,1559.6,18.18182448]
[1673923626910,3.03026434,1559.8,1559.6,15.93999407]
[1673923627367,1.59392611,1559.8,1559.6,15.93999407]
[1673923627732,1.11282611,1559.8,1559.6,15.93999407]
[1673923628010,1.11282611,1559.8,1559.6,22.35189407]
[1673923628989,1.11282611,1559.8,1559.7,22.35106407]
[1673923629444,0.15350278,1559.8,1559.7,22.35106407]
[1673923629799,0.15350278,1559.8,1559.7,25.23392248]
[1673923633624,0.15350278,1559.8,1559.7,25.23168996]
[1673923633973,0.15650278,1559.8,1559.7,25.23168996]
[1673923634139,0.15650278,1559.8,1559.7,15.93735155]
[1673923634140,0.15350278,1559.8,1559.7,15.93735155]
[1673923635428,0.15350278,1559.8,1559.7,22.34883155]
[1673923637089,0.15350278,1559.8,1559.7,23.58483155]
[1673923637497,0.15350278,1559.8,1559.7,26.58483155]
[1673923638560,0.15350278,1559.8,1559.7,25.34883155]
[1673923638765,0.15350278,1559.8,1559.7,28.67916671]
[1673923641963,0.15350278,1559.8,1559.7,30.15616671]
[1673923643656,0.19001009,1559.9,1559.8,20.23321]
[1673923643978,0.19001009,1559.9,1559.8,24.82683407]
[1673923644127,0.19001009,1559.9,1559.8,27.82683407]
[1673923644335,0.19001009,1559.9,1559.8,31.59029899]
[1673923645173,0.19001009,1559.9,1559.8,30.59029899]
[1673923646242,0.19001009,1559.9,1559.8,26.82683407]
[1673923649175,0.19001009,1559.9,1559.8,25.34983407]
[1673923652389,0.19920478,1560.0,1559.9,0.18999991]
[1673923652568,0.18991784,1560.1,1560.0,19.23075]
[1673923652778,0.18991784,1560.1,1560.0,26.81637407]
[1673923653119,0.18991784,1560.1,1560.0,29.92361147]
[1673923653310,0.18991784,1560.1,1560.0,28.45461147]
[1673923654237,0.18991784,1560.1,1560.0,29.91961147]
[1673923654635,0.18991784,1560.1,1560.0,28.45461147]
[1673923655935,0.18991784,1560.1,1560.0,29.92961147]
[1673923656790,0.13991784,1560.1,1560.0,29.92961147]
[1673923657419,0.08991784,1560.1,1560.0,29.92961147]
[1673923658894,1.04924117,1560.1,1560.0,29.92961147]
[1673923659739,0.08991784,1560.1,1560.0,29.92961147]
[1673923660780,0.08991784,1560.1,1560.0,30.57595065]
[1673923661163,1.04924117,1560.1,1560.0,30.57595065]
[1673923662158,1.04924117,1560.1,1560.0,25.34737407]
[1673923662373,2.48513257,1560.1,1560.0,25.34737407]
[1673923662738,1.52625607,1560.1,1560.0,25.34737407]
[1673923664039,3.44755409,1560.1,1560.0,18.93712407]
[1673923664258,3.44755409,1560.1,1560.0,12.52687407]
[1673923664631,1.13991784,1560.1,1560.0,12.52687407]
[1673923664844,2.57625607,1560.1,1560.0,12.52687407]
[1673923665158,15.0055648,1560.3,1560.1,3.13251849]
[1673923665159,0.18196543,1560.3,1560.1,3.13251849]
[1673923665384,0.018,1560.2,1560.1,3.13251849]
[1673923665782,0.018,1560.2,1560.1,29.07400174]
[1673923666664,0.018,1560.2,1560.1,28.42766256]
[1673923667427,0.018,1560.2,1560.1,29.07400174]
[1673923667611,0.018,1560.2,1560.1,29.88316335]
[1673923668245,0.018,1560.2,1560.1,28.40816335]
[1673923672431,0.018,1560.2,1560.1,27.59900174]
[1673923674582,2.02701891,1560.2,1560.1,8.01635849]
[1673923674880,2.96733823,1560.2,1560.1,8.01635849]
[1673923675931,2.96733823,1560.2,1560.1,9.00588582]
[1673923676844,2.48633823,1560.2,1560.1,9.00588582]
[1673923677054,3.49012833,1560.2,1560.1,9.00588582]
[1673923677743,3.01278861,1560.2,1560.1,9.00588582]
[1673923679419,0.95899851,1560.2,1560.1,9.00588582]
[1673923682457,0.95899851,1560.2,1560.1,15.41572582]
[1673923685830,1.43633823,1560.2,1560.1,9.00588582]
[1673923688082,1.43633823,1560.2,1560.1,12.12250989]
[1673923688083,0.95914593,1560.2,1560.1,12.12250989]
[1673923688294,0.28096543,1560.3,1560.1,29.80202888]
[1673923688536,0.18196543,1560.3,1560.1,29.80202888]